bitfinex-derivatives/quotes_SOLF0:USTF0_20250409
["timestamp","ask_amount","ask_price","bid_price","bid_amount"]
[1744170907459,47.5444,103.62,103.55,9.6642]
[1744170907663,0.07365494,103.58,103.57,0.06249059]
[1744170907863,9.6614,103.59,103.57,0.06249059]
[1744170908170,0.06984823,103.59,103.57,0.06249059]
[1744170908567,9.6619,103.58,103.57,0.06249059]
[1744170908975,0.06984823,103.59,103.54,43.02]
[1744170909675,9.664,103.56,103.54,43.02]
[1744170909875,43.0,103.59,103.54,43.02]
[1744170910372,9.6642,103.56,103.55,0.06976947]
[1744170910775,0.07130093,103.58,103.55,0.06976947]
[1744170911176,20.23376255,103.58,103.55,0.06976947]
[1744170911376,9.6637,103.56,103.55,0.06976947]
[1744170911564,2.3072,103.57,103.55,0.06976947]
[1744170911765,0.07130093,103.58,103.55,0.06976947]
[1744170911974,9.663,103.57,103.55,0.06976947]
[1744170912175,0.07130093,103.58,103.55,0.06976947]
[1744170912565,9.6637,103.56,103.55,0.06976947]
[1744170913771,9.6668,103.53,103.51,2.3621]
[1744170913971,43.02,103.56,103.49,22.53686162]
[1744170914175,9.6672,103.53,103.49,32.20626162]
[1744170914377,45.3799,103.56,103.49,32.20626162]
[1744170914880,9.6671,103.53,103.51,0.06642104]
[1744170915178,0.06945914,103.54,103.51,0.06642104]
[1744170916777,0.06945914,103.54,103.51,52.75432104]
[1744170916978,0.06945914,103.54,103.51,43.08642104]
[1744170917380,9.6673,103.53,103.51,0.06642104]
[1744170918084,0.06945914,103.54,103.51,0.06642104]
[1744170918474,43.02,103.53,103.51,0.06642104]
[1744170918674,45.2613,103.53,103.51,0.06642104]
[1744170918985,9.6675,103.52,103.51,0.06642104]
[1744170921287,9.6712,103.48,103.46,6.6911]
[1744170921481,45.2613,103.53,103.46,6.6911]
[1744170921784,9.6695,103.5,103.46,6.6911]
[1744170922486,0.06225921,103.49,103.48,9.6712]
[1744170922687,43.02,103.53,103.48,43.02]
[1744170922875,43.02,103.53,103.46,6.6911]
[1744170923080,9.6692,103.51,103.47,9.6716]
[1744170923277,9.6692,103.51,103.46,26.85356162]
[1744170923481,9.6692,103.51,103.48,20.16246162]
[1744170923682,9.6692,103.51,103.48,29.83306162]
[1744170923884,9.6695,103.5,103.48,20.22467477]
[1744170924291,0.07280201,103.51,103.48,0.06221315]
[1744170925491,9.6699,103.5,103.48,0.06221315]
[1744170925991,9.6703,103.49,103.48,0.06221315]
[1744170926999,9.6727,103.47,103.41,45.3885]
[1744170927189,43.04,103.5,103.41,47.6377]
[1744170927393,47.7492,103.5,103.42,9.6763]
[1744170927892,9.6741,103.45,103.42,9.6763]
[1744170928205,9.74685848,103.45,103.42,9.74369066]
[1744170928898,9.74685848,103.45,103.42,0.06739066]
[1744170929603,9.6752,103.44,103.42,0.06739066]
[1744170930103,9.6759,103.43,103.42,0.06739066]
[1744170931506,43.04,103.44,103.38,67.83476162]
[1744170931705,43.04,103.44,103.38,77.51516162]
[1744170931908,43.04,103.44,103.4,20.16246162]
[1744170932102,2.284,103.45,103.4,20.16246162]
[1744170932703,0.07192581,103.44,103.41,0.063755]
[1744170932904,9.6768,103.42,103.41,0.063755]
[1744170933800,43.11192581,103.44,103.36,20.16246162]
[1744170933994,43.11192581,103.44,103.36,26.78206162]
[1744170934196,43.04,103.44,103.37,52.701]
[1744170934494,9.6782,103.41,103.37,52.701]
[1744170934907,0.07077158,103.4,103.38,0.06418433]
[1744170936007,9.74967158,103.4,103.38,0.06418433]
[1744170937501,9.6796,103.39,103.38,0.06418433]
[1744170938611,0.07077158,103.4,103.33,43.02]
[1744170938612,9.6838,103.35,103.33,43.02]
[1744170938797,2.289,103.39,103.33,43.02]
[1744170939112,4.69,103.39,103.33,43.02]
[1744170939413,20.16246162,103.38,103.23,429.24065757]
[1744170939611,20.16246162,103.36,103.27,28.66166839]
[1744170939803,0.07289018,103.32,103.29,0.07209744]
[1744170940209,9.6876,103.31,103.27,36.66776162]
[1744170940411,0.07289018,103.32,103.29,20.23256325]
[1744170941112,0.07289018,103.32,103.3,9.6878]
[1744170941307,0.07289018,103.32,103.29,20.23256325]
[1744170941705,0.07289018,103.32,103.31,20.16246162]
[1744170942006,0.07289018,103.32,103.3,43.04]
[1744170942815,0.07289018,103.32,103.29,29.92106325]
[1744170943114,0.07289018,103.32,103.31,20.16246162]
[1744170943297,0.07289018,103.32,103.29,0.07010163]
[1744170943298,0.07289018,103.32,103.3,43.06]
[1744170943497,0.07289018,103.32,103.3,52.7476]
[1744170943712,0.07289018,103.32,103.29,0.07010163]
[1744170944007,9.688,103.3,103.29,0.07010163]
[1744170944597,9.6905,103.28,103.25,52.7523]
[1744170944802,4.5094,103.33,103.25,52.7523]
[1744170945001,2.2272,103.32,103.25,72.91476162]
[1744170945414,9.6897,103.29,103.25,52.7523]
[1744170945601,2.2272,103.32,103.25,43.06]
[1744170945801,0.06601467,103.28,103.26,0.06360879]
[1744170946209,0.06601467,103.28,103.26,9.75490879]
[1744170946714,0.06601467,103.28,103.27,9.6909]
[1744170947309,9.6866,103.32,103.26,32.4841274]
[1744170947612,43.06,103.34,103.26,32.4841274]
[1744170947807,9.6896,103.29,103.26,0.06360879]
[1744170948008,9.6896,103.29,103.25,43.06]
[1744170948313,0.07052699,103.28,103.26,9.7633233]
[1744170948512,9.6885,103.3,103.26,9.6913]
[1744170948712,0.07222998,103.28,103.26,9.75551321]
[1744170950916,9.76222998,103.28,103.26,0.06421321]
[1744170951316,0.07222998,103.28,103.26,0.06421321]
[1744170951616,0.07222998,103.28,103.26,9.75511321]
[1744170952116,0.07222998,103.28,103.26,0.06421321]
[1744170954618,0.07222998,103.28,103.26,9.75561321]
[1744170955214,0.07222998,103.28,103.27,9.6909]
[1744170956219,0.07222998,103.28,103.26,9.75561321]
[1744170957119,9.76252998,103.28,103.26,0.06421321]
[1744170957311,0.07222998,103.28,103.26,0.06421321]
[1744170957719,0.07222998,103.28,103.26,9.75581321]
[1744170957914,0.07222998,103.28,103.26,0.06421321]
[1744170958314,0.07222998,103.28,103.27,9.6909]
[1744170958711,43.08,103.34,103.27,2.3854]
[1744170958911,9.6867,103.32,103.29,9.6881]
[1744170959107,43.08,103.34,103.28,45.4036]
[1744170959314,43.08,103.34,103.28,47.7853]
[1744170959622,43.08,103.34,103.28,80.20581861]
[1744170959812,0.06803705,103.32,103.3,0.06350702]
[1744170960518,0.06803705,103.32,103.31,9.6871]
[1744170960918,0.06803705,103.32,103.3,0.06350702]
[1744170961217,0.06803705,103.32,103.3,9.75080702]
[1744170962424,9.6871,103.31,103.3,0.06350702]
[1744170963321,0.06803705,103.32,103.3,0.06350702]
[1744170964326,0.06803705,103.32,103.31,9.6871]
[1744170964827,0.06803705,103.32,103.3,0.06350702]
[1744170965129,9.6871,103.31,103.3,0.06350702]
[1744170965421,0.06803705,103.32,103.3,0.06350702]
[1744170966027,0.06803705,103.32,103.3,9.75090702]
[1744170966226,0.06803705,103.32,103.3,0.06350702]
[1744170967824,0.06803705,103.32,103.3,20.3149906]
[1744170968330,0.06803705,103.32,103.31,9.6871]
[1744170968627,43.06,103.39,103.31,43.06]
[1744170968829,9.6829,103.36,103.33,9.6848]
[1744170969124,45.3838,103.39,103.32,20.25148358]
[1744170969327,9.681,103.38,103.35,9.6825]
[1744170969522,45.3838,103.39,103.33,24.73678358]
[1744170969719,9.6826,103.36,103.35,0.07115278]
[1744170974335,0.06502956,103.38,103.35,0.07115278]
[1744170974829,9.6824,103.36,103.35,0.07115278]
[1744170977433,0.06502956,103.38,103.35,9.75395278]
[1744170977825,9.74602956,103.38,103.35,9.75395278]
[1744170978023,0.06502956,103.38,103.36,9.6823]
[1744170978329,0.06502956,103.38,103.35,20.32263636]
[1744170978528,0.06502956,103.38,103.37,20.25148358]
[1744170979233,0.06502956,103.38,103.37,29.93298358]
[1744170981030,49.8944,103.45,103.39,9.6792]
[1744170981232,49.8944,103.45,103.37,63.29148358]
[1744170981534,43.04,103.49,103.43,9.6759]
[1744170981734,45.3561,103.49,103.43,9.6759]
[1744170981924,45.3561,103.49,103.41,63.29148358]
[1744170982129,9.6755,103.44,103.41,72.96878358]
[1744170982333,45.3561,103.49,103.41,63.29148358]
[1744170982636,0.0738781,103.44,103.38,107.4424]
[1744170982934,43.1138781,103.44,103.38,45.4424]
[1744170983137,9.6777,103.41,103.4,0.06168515]
[1744170983334,43.04,103.44,103.4,0.06168515]
[1744170983534,0.06880512,103.42,103.4,0.06168515]
[1744170983730,9.6777,103.41,103.4,0.06168515]
[1744170986033,43.04,103.41,103.35,43.04]
[1744170986239,43.04,103.41,103.34,20.25148358]
[1744170986240,2.333,103.4,103.33,11.9851]
[1744170986434,4.5169,103.4,103.33,11.9851]
[1744170987141,9.6822,103.37,103.35,0.06854562]
[1744170988643,0.07056153,103.38,103.35,0.06854562]
[1744170989033,0.07056153,103.38,103.37,9.6815]
[1744170989535,2.3693,103.43,103.36,87.04678358]
[1744170989736,2.3693,103.43,103.38,20.25148358]
[1744170989934,2.3693,103.43,103.38,63.29148358]
[1744170990135,9.6782,103.41,103.38,72.97158358]
[1744170990330,9.6782,103.41,103.38,29.93158358]
[1744170990632,9.6782,103.41,103.38,0.06313452]
[1744170990633,63.3535151,103.41,103.38,0.06313452]
[1744170990835,43.10203152,103.41,103.38,0.06313452]
[1744170991333,9.6796,103.39,103.38,0.06313452]
[1744170991536,43.10203152,103.41,103.38,0.06313452]
[1744170992141,9.6796,103.39,103.38,0.06313452]
[1744170998243,43.10203152,103.41,103.38,0.06313452]
[1744170998444,0.06203152,103.41,103.38,20.3146181]
[1744170999046,0.06203152,103.41,103.4,20.25148358]
[1744170999243,9.73973152,103.41,103.38,20.3146181]
[1744170999848,0.06203152,103.41,103.38,20.3146181]
[1744171000241,9.74023152,103.41,103.38,29.9947181]
[1744171001348,0.06203152,103.41,103.39,9.6795]
[1744171003550,0.06203152,103.41,103.4,9.6787]
[1744171003751,0.06203152,103.41,103.38,20.3146181]
[1744171004144,0.06203152,103.41,103.39,9.6791]
[1744171004345,0.06203152,103.41,103.38,20.3146181]
[1744171004848,0.06203152,103.41,103.39,9.6792]
[1744171005045,47.6708,103.47,103.4,63.25148358]
[1744171005242,9.6731,103.46,103.43,9.675]
[1744171006345,0.06669962,103.46,103.43,43.06620389]
[1744171006542,0.06669962,103.46,103.43,45.33320389]
[1744171006743,0.06669962,103.46,103.43,43.06620389]
[1744171006944,9.74019962,103.46,103.43,52.74190389]
[1744171007149,0.06669962,103.46,103.43,43.06620389]
[1744171007451,0.06669962,103.46,103.43,0.06620389]
[1744171008048,9.74029962,103.46,103.43,9.74160389]
[1744171008560,9.674,103.45,103.43,0.06620389]
[1744171008754,0.06669962,103.46,103.43,0.06620389]
[1744171008958,9.6747,103.45,103.43,0.06620389]
[1744171009454,9.6746,103.45,103.43,0.06620389]
[1744171010655,0.06669962,103.46,103.43,0.06620389]
[1744171011553,9.6744,103.45,103.43,0.06620389]
[1744171012355,0.06669962,103.46,103.43,0.06620389]
[1744171013254,9.6745,103.45,103.43,0.06620389]
[1744171014060,0.06669962,103.46,103.43,0.06620389]
[1744171015759,9.6749,103.44,103.43,0.06620389]
[1744171016956,0.06669962,103.46,103.43,0.06620389]
[1744171017556,9.6744,103.45,103.43,0.06620389]
[1744171017756,0.06669962,103.46,103.43,0.06620389]
[1744171018061,0.06669962,103.46,103.43,9.74200389]
[1744171018761,0.06669962,103.46,103.43,0.06620389]
[1744171019763,9.6747,103.45,103.43,0.06620389]
[1744171020061,0.06669962,103.46,103.43,0.06620389]
[1744171020263,9.6746,103.45,103.43,0.06620389]
[1744171020460,0.06669962,103.46,103.43,0.06620389]
[1744171021361,25.0855832,103.46,103.38,20.25148358]
[1744171021556,20.25148358,103.44,103.37,2.2432]
[1744171021861,9.6802,103.39,103.36,9.6819]
[1744171022062,45.3915,103.43,103.35,22.58308358]
[1744171022558,9.6798,103.39,103.38,0.07419103]
[1744171022959,0.07038284,103.4,103.38,0.07419103]
[1744171023963,9.6796,103.39,103.38,0.07419103]
[1744171024655,42.96,103.39,103.32,510.78]
[1744171024853,2.3543,103.38,103.31,63.21148358]
[1744171025261,2.3543,103.38,103.32,9.6857]
[1744171025461,22.60578358,103.38,103.3,4.7061]
[1744171025661,9.6869,103.32,103.28,55.0592]
[1744171025862,42.98,103.34,103.27,161.17171553]
[1744171026160,2.3543,103.33,103.27,161.17171553]
[1744171026558,2.3543,103.33,103.27,181.42319911]
[1744171026859,9.6877,103.31,103.27,170.86201553]
[1744171027075,2.3543,103.33,103.28,42.98]
[1744171027259,0.0722347,103.31,103.3,9.6876]
[1744171027455,42.98,103.37,103.29,20.31975155]
[1744171027764,9.6831,103.36,103.32,9.6855]
[1744171028169,52.662,103.37,103.33,9.6852]
[1744171028570,42.98,103.37,103.31,63.23148358]
[1744171028767,0.06374816,103.36,103.34,0.06585201]
[1744171030771,0.06374816,103.36,103.34,9.75005201]
[1744171031173,0.06374816,103.36,103.34,0.06585201]
[1744171031474,0.06374816,103.36,103.35,9.6834]
[1744171031665,0.06374816,103.36,103.35,29.93488358]
[1744171031871,42.98,103.4,103.38,9.6798]
[1744171032168,9.6784,103.41,103.35,22.58398358]
[1744171032367,2.376,103.42,103.35,22.58398358]
[1744171032973,0.0696866,103.4,103.37,0.07264545]
[1744171033175,0.0696866,103.4,103.37,20.32412903]
[1744171034172,0.0696866,103.4,103.38,9.6805]
[1744171034367,9.7483866,103.4,103.37,0.07264545]
[1744171035574,0.0696866,103.4,103.37,0.07264545]
[1744171035966,43.0496866,103.4,103.37,0.07264545]
[1744171036167,63.30117018,103.4,103.31,63.23148358]
[1744171036372,20.25148358,103.38,103.29,535.92128358]
[1744171036569,9.6837,103.35,103.31,9.6867]
[1744171037274,9.6837,103.35,103.32,9.6861]
[1744171037462,0.06569771,103.34,103.32,9.75942088]
[1744171037967,0.06569771,103.34,103.33,9.6852]
[1744171038170,0.06569771,103.34,103.32,43.05332088]
[1744171038572,0.06569771,103.34,103.33,9.6852]
[1744171040081,0.06569771,103.34,103.32,43.05332088]
[1744171040082,0.06569771,103.34,103.32,52.73902088]
[1744171040275,0.06569771,103.34,103.32,0.07332088]
[1744171040780,0.06569771,103.34,103.33,9.6852]
[1744171043874,0.06569771,103.34,103.32,52.75912088]
[1744171044075,0.06569771,103.34,103.32,43.07332088]
[1744171044884,0.06569771,103.34,103.33,9.6852]
[1744171045984,0.06569771,103.34,103.32,0.07332088]
[1744171046582,0.06569771,103.34,103.33,9.6852]
[1744171047981,0.06569771,103.34,103.32,43.07332088]
[1744171048284,0.06569771,103.34,103.32,0.07332088]
[1744171048583,9.75049771,103.34,103.32,0.07332088]
[1744171049688,9.6852,103.33,103.32,0.07332088]
[1744171050282,9.6873,103.31,103.27,9.69]
[1744171050483,9.6873,103.31,103.26,43.0]
[1744171050891,9.6873,103.31,103.28,9.6893]
[1744171051291,9.75420762,103.31,103.28,0.06917271]
[1744171051493,0.06690762,103.31,103.29,9.689]
[1744171051694,0.06690762,103.31,103.28,0.06917271]
[1744171051896,0.06690762,103.31,103.29,43.0]
[1744171052300,0.06690762,103.31,103.3,9.688]
[1744171054794,47.6188,103.37,103.33,9.6843]
[1744171054995,42.96,103.4,103.32,75.33800471]
[1744171055196,42.96,103.42,103.34,32.37800471]
[1744171055394,9.6801,103.39,103.36,9.682]
[1744171055595,42.96,103.42,103.34,32.37800471]
[1744171055798,0.07250085,103.39,103.37,0.06349742]
[1744171056001,9.75230085,103.39,103.37,0.06349742]
[1744171056201,43.03250085,103.39,103.37,0.06349742]
[1744171056703,9.6805,103.38,103.37,0.06349742]
[1744171057006,43.03250085,103.39,103.33,11.953]
[1744171057304,9.6826,103.36,103.33,11.953]
[1744171057504,42.96,103.39,103.32,52.6458]
[1744171057708,2.2193,103.38,103.32,42.96]
[1744171058006,4.5169,103.38,103.32,42.96]
[1744171058196,0.07422465,103.36,103.34,0.07025459]
[1744171058801,9.6834,103.35,103.34,0.07025459]
[1744171059005,43.03422465,103.36,103.29,42.96]
[1744171059306,42.96,103.36,103.27,6.9287]
[1744171059499,9.6875,103.31,103.28,9.6895]
[1744171060208,9.75448846,103.31,103.28,9.75294558]
[1744171060408,0.06698846,103.31,103.28,0.06344558]
[1744171060907,0.06698846,103.31,103.29,9.6885]
[1744171061202,42.96,103.36,103.29,42.96]
[1744171061410,42.96,103.36,103.3,32.37800471]
[1744171061613,52.6433,103.36,103.33,9.685]
[1744171062000,42.96,103.36,103.29,42.96]
[1744171062204,42.96,103.36,103.29,75.33800471]
[1744171062405,0.06711211,103.34,103.31,0.0680568]
[1744171062609,0.06711211,103.34,103.32,9.6857]
[1744171062809,0.06711211,103.34,103.31,0.0680568]
[1744171063213,9.75151211,103.34,103.31,9.7546568]
[1744171064409,0.06711211,103.34,103.32,9.6861]
[1744171064709,0.06711211,103.34,103.31,0.0680568]
[1744171065212,9.75151211,103.34,103.31,9.7547568]
[1744171066709,9.75151211,103.34,103.32,9.6861]
[1744171066912,0.06711211,103.34,103.31,0.0680568]
[1744171067318,0.06711211,103.34,103.32,9.6857]
[1744171068323,0.06711211,103.34,103.31,9.7548568]
[1744171068617,0.06711211,103.34,103.31,0.0680568]
[1744171068808,9.6858,103.33,103.31,0.0680568]
[1744171069516,0.06711211,103.34,103.32,9.6858]
[1744171069726,0.06711211,103.34,103.31,0.0680568]
[1744171070019,0.06711211,103.34,103.32,42.96]
[1744171070622,0.06711211,103.34,103.32,52.6457]
[1744171071221,0.06711211,103.34,103.32,42.96]
[1744171072015,0.06711211,103.34,103.33,9.6852]
[1744171073017,42.96,103.39,103.33,32.37800471]
[1744171073217,42.96,103.39,103.33,34.61320471]
[1744171073617,42.96,103.39,103.32,47.5246]
[1744171073811,9.6836,103.35,103.32,47.5246]
[1744171074012,9.6836,103.35,103.32,57.28320657]
[1744171074316,0.06828942,103.35,103.32,47.59790657]
[1744171074522,0.06828942,103.35,103.32,43.03330657]
[1744171075419,0.06828942,103.35,103.33,9.6852]
[1744171075722,0.06828942,103.35,103.32,43.03330657]
[1744171076117,0.06828942,103.35,103.33,9.6852]
[1744171076315,0.06828942,103.35,103.32,0.07330657]
[1744171077217,0.06828942,103.35,103.34,9.6843]
[1744171077518,2.1824,103.4,103.33,20.23728209]
[1744171077723,9.6807,103.38,103.35,9.683]
[1744171078123,6.9806,103.41,103.33,24.61948209]
[1744171078324,9.6801,103.39,103.36,9.6818]
[1744171078717,9.6801,103.39,103.36,9.74420916]
[1744171078718,9.74450534,103.39,103.36,9.74420916]
[1744171078917,9.6806,103.38,103.36,9.74420916]
[1744171079424,0.06440534,103.39,103.36,9.74420916]
[1744171079623,9.74470534,103.39,103.36,9.74420916]
[1744171080218,0.06440534,103.39,103.36,9.74420916]
[1744171080425,0.06440534,103.39,103.36,0.06240916]
[1744171082824,9.6809,103.38,103.36,0.06240916]
[1744171083226,9.6809,103.38,103.36,9.74470916]
[1744171083824,0.06440534,103.39,103.38,9.6805]
[1744171084324,0.06440534,103.39,103.37,12.0655]
[1744171084527,0.06440534,103.39,103.36,0.06240916]
[1744171084822,0.06440534,103.39,103.36,62.06240916]
[1744171085020,9.6806,103.38,103.36,0.06240916]
[1744171085216,0.06440534,103.39,103.36,0.06240916]
[1744171086124,0.06440534,103.39,103.37,9.6807]
[1744171087131,0.06440534,103.39,103.38,9.6805]
[1744171087531,47.4453,103.46,103.38,42.9]
[1744171087825,9.6765,103.43,103.4,9.6783]
[1744171088026,6.8363,103.46,103.4,32.36529345]
[1744171088227,42.9,103.49,103.42,9.6761]
[1744171088423,49.7363,103.49,103.42,9.6761]
[1744171088634,0.06866155,103.47,103.44,0.06755155]
[1744171088825,9.74126155,103.47,103.44,0.06755155]
[1744171089023,0.06866155,103.47,103.44,0.06755155]
[1744171089833,9.6735,103.46,103.44,0.06755155]
[1744171090427,0.06866155,103.47,103.44,0.06755155]
[1744171090630,9.674,103.45,103.44,0.06755155]
[1744171090931,0.06866155,103.47,103.44,0.06755155]
[1744171091133,9.6731,103.46,103.44,0.06755155]
[1744171092139,9.674,103.45,103.44,0.06755155]
[1744171092335,0.06866155,103.47,103.44,42.96755155]
[1744171092828,0.06866155,103.47,103.45,9.6733]
[1744171093037,0.06866155,103.47,103.44,79.801145]
[1744171093334,0.06866155,103.47,103.45,9.6734]
[1744171094133,0.06866155,103.47,103.44,0.06755155]
[1744171094441,42.9,103.46,103.39,16.4643]
[1744171094732,2.2754,103.45,103.39,16.4643]
[1744171095034,2.2754,103.45,103.39,6.7852]
[1744171095735,0.06254315,103.43,103.41,0.06235225]
[1744171097036,9.6768,103.42,103.41,0.06235225]
[1744171097437,0.06254315,103.43,103.41,0.06235225]
[1744171097638,0.06254315,103.43,103.41,9.73985225]
[1744171097934,0.06254315,103.43,103.41,0.06235225]
[1744171099140,9.6768,103.42,103.41,0.06235225]
[1744171100442,0.06254315,103.43,103.41,0.06235225]
[1744171101039,9.73904315,103.43,103.41,0.06235225]
[1744171101240,0.06254315,103.43,103.41,0.06235225]
[1744171101638,9.6768,103.42,103.41,0.06235225]
[1744171102348,9.6812,103.38,103.33,76.92852642]
[1744171102639,4.4635,103.41,103.36,9.6823]
[1744171102845,9.6762,103.43,103.37,32.36529345]
[1744171103038,9.6762,103.43,103.37,37.04969345]
[1744171103233,2.2754,103.45,103.37,37.04969345]
[1744171103437,0.06429955,103.42,103.4,0.06783385]
[1744171103843,42.94429955,103.42,103.4,0.06783385]
[1744171104042,42.94429955,103.42,103.36,42.88]
[1744171104248,4.7367,103.41,103.36,42.88]
[1744171104443,4.7367,103.41,103.36,52.5619]
[1744171104642,9.6796,103.4,103.36,52.5619]
[1744171104848,4.7367,103.41,103.36,52.5619]
[1744171105149,9.6801,103.39,103.36,52.5619]
[1744171105348,9.6801,103.39,103.37,0.06711006]
[1744171105847,0.07380787,103.4,103.37,0.06711006]
[1744171106646,9.75320787,103.4,103.37,9.74811006]
[1744171107150,9.6805,103.38,103.37,0.06711006]
[1744171108249,0.07380787,103.4,103.37,0.06711006]
[1744171108643,0.07380787,103.4,103.37,9.74841006]
[1744171108840,0.07380787,103.4,103.37,0.06711006]
[1744171109245,0.07380787,103.4,103.38,9.68]
[1744171109842,0.07380787,103.4,103.39,9.6796]
[1744171110240,42.9,103.47,103.39,32.36529345]
[1744171110641,42.9,103.47,103.38,47.482]
[1744171110948,9.6774,103.42,103.38,57.1616]
[1744171111341,0.07405701,103.41,103.39,0.06651599]
[1744171111541,9.75215701,103.41,103.39,0.06651599]
[1744171112050,0.07405701,103.41,103.39,0.06651599]
[1744171113249,9.75245701,103.41,103.39,0.06651599]
[1744171113746,0.07405701,103.41,103.39,0.06651599]
[1744171114647,9.6787,103.4,103.39,0.06651599]
[1744171115740,42.93405701,103.41,103.35,42.9]
[1744171115944,20.21488993,103.4,103.31,24.78028993]
[1744171116143,9.6838,103.35,103.31,65.38848993]
[1744171116744,4.8217,103.37,103.31,65.38848993]
[1744171116946,0.07222856,103.34,103.32,0.06467887]
[1744171117646,0.07222856,103.34,103.33,9.6851]
[1744171119053,0.07222856,103.34,103.32,0.06467887]
[1744171120256,9.6852,103.33,103.32,0.06467887]
[1744171120759,9.6871,103.31,103.28,9.6895]
[1744171120956,9.6871,103.31,103.26,34.74701106]
[1744171120957,42.88,103.32,103.26,2.3644]
[1744171121153,9.6885,103.3,103.27,9.6904]
[1744171121855,45.3007,103.32,103.24,2.2445]
[1744171122067,0.07000864,103.3,103.27,0.06952058]
[1744171122268,9.6899,103.28,103.27,0.06952058]
[1744171122973,0.07000864,103.3,103.16,268.06894204]
[1744171123168,42.88,103.29,103.18,39.34181106]
[1744171123363,42.88,103.29,103.19,42.88]
[1744171123563,9.6923,103.26,103.22,9.6948]
[1744171124173,0.06714704,103.25,103.23,0.06554831]
[1744171125469,0.06714704,103.25,103.24,9.6937]
[1744171125771,2.2489,103.31,103.23,2.47384831]
[1744171125970,2.2489,103.31,103.23,6.89084831]
[1744171126172,2.2489,103.31,103.26,9.6913]
[1744171126877,9.6885,103.3,103.26,9.6913]
[1744171127170,9.7604263,103.3,103.27,0.07325544]
[1744171127572,9.6892,103.29,103.27,0.07325544]
[1744171128172,9.7603263,103.3,103.27,0.07325544]
[1744171128970,9.7603263,103.3,103.27,9.76405544]
[1744171129377,0.0719263,103.3,103.27,9.76405544]
[1744171129879,0.0719263,103.3,103.27,0.07325544]
[1744171130065,47.5709,103.35,103.28,75.28261106]
[1744171130268,47.5709,103.35,103.3,9.6879]
[1744171130468,47.5709,103.35,103.28,82.11321106]
[1744171130469,47.5709,103.35,103.28,49.7306]
[1744171130668,2.3132,103.34,103.22,62.0]
[1744171130868,32.38261106,103.32,103.24,9.6935]
[1744171131071,42.9,103.31,103.24,9.6935]
[1744171131272,0.06110347,103.29,103.24,9.6935]
[1744171131477,9.6899,103.28,103.27,0.06783314]
[1744171132884,12.00570347,103.29,103.27,0.06783314]
[1744171133177,9.75040347,103.29,103.27,0.06783314]
[1744171133373,0.06110347,103.29,103.27,0.06783314]
[1744171133572,0.06110347,103.29,103.27,42.96783314]
[1744171135081,9.75020347,103.29,103.27,42.96783314]
[1744171137387,0.06110347,103.29,103.27,52.65863314]
[1744171137581,0.06110347,103.29,103.27,0.06783314]
[1744171138285,9.6899,103.28,103.27,0.06783314]
[1744171138484,0.06110347,103.29,103.22,42.9]
[1744171138689,42.9,103.3,103.22,42.9]
[1744171139486,0.06603237,103.27,103.25,0.06298595]
[1744171139888,9.6918,103.26,103.25,0.06298595]
[1744171140387,0.06603237,103.27,103.25,52.67558595]
[1744171140688,0.06603237,103.27,103.25,42.98298595]
[1744171141089,0.06603237,103.27,103.26,9.6918]
[1744171141284,0.06603237,103.27,103.26,71.6918]
[1744171141485,0.06603237,103.27,103.26,9.6918]
[1744171141791,9.6876,103.31,103.28,9.6899]
[1744171141983,49.9977,103.33,103.25,47.7414]
[1744171142184,49.9977,103.33,103.26,2.3893]
[1744171142379,9.6879,103.31,103.28,9.6898]
[1744171142584,47.7424,103.33,103.28,42.92]
[1744171142785,9.6886,103.3,103.28,42.92]
[1744171143085,9.6886,103.3,103.29,0.07154283]
[1744171144186,9.6886,103.3,103.29,4.283e-05]
[1744171145692,9.6875,103.31,103.29,4.283e-05]
[1744171145892,0.07302351,103.32,103.29,4.283e-05]
[1744171146893,9.6879,103.31,103.29,4.283e-05]
[1744171147295,0.07302351,103.32,103.29,4.283e-05]
[1744171148499,9.688,103.3,103.29,4.283e-05]
[1744171153302,0.07302351,103.32,103.29,4.283e-05]
[1744171154700,0.07302351,103.32,103.3,42.88]
[1744171155003,2.2377,103.37,103.3,75.26261106]
[1744171155601,2.2377,103.37,103.3,42.88]
[1744171155801,9.6848,103.34,103.31,9.6865]
[1744171156194,9.6848,103.34,103.31,0.07444009]
[1744171156195,0.0688989,103.34,103.31,0.07444009]